Cogmind - Beta 16 @@@ ROGUE MODE // 2025.11.26 @ 17:16:09 Player: The Overplayer Result: Destroyed by Y-54 Guardian with Flak Gun Performance ------------- Evolutions (3) 1500 Regions Visited (7) 1400 Robots Destroyed (58) 290 Value Destroyed (1804) 1804 Prototype IDs (32) 640 Alien Tech Used (0) 0 Bonus (373) 373 TOTAL SCORE: 6007 Bonus ------- High Alert Combat Kills 197 Follower Combat Kills 150 Aligned with FarCom 300 Friendly Fire -274 Cogmind --------- Core Integrity 0/700 Matter 84/300 Energy 91/100 System Corruption 0% Temperature Cool (62) Movement Core (300) Ox5 Location -7/Storage Parts ------- > --- POWER (1) -------- (None) > --- PROPULSION (4) --- (None) > --- UTILITY (4) ------ Modified TNC Sensor Drone Bay (17/20) > --- WEAPON (4) ------- XL Autogun Subcomponent > --- INVENTORY (5) ---- Improved Shield Generator Authchip [Processor] Peak State ------------ > --- POWER ------------ Improved Deuterium Engine > --- PROPULSION ------- Light Treads Light Treads Light Treads > --- UTILITY ---------- Small Storage Unit Modified TNC Hardened Heavy Armor Plating > --- WEAPON ----------- XL Autogun Array > --- INVENTORY -------- Improved Shield Generator Authchip [Processor] Sensor Drone Bay [Rating: 59] Favorites ----------- Power Light Ion Engine Engine Light Ion Engine Power Core Light Nuclear Core Propulsion Aluminum Leg Treads Light Treads Leg Aluminum Leg Utility Small Storage Unit Device Cooling System Storage Small Storage Unit Processor Modified TNC Hackware Authchip [Weapon] Protection Hardened Heavy Armor Plating Weapon Gauss Rifle Ballistic Gun Gauss Rifle Impact Weapon Hammer Build | -11 -10 -10 -10 -9 -8 -7 -7 ------- Run | Yrd Mat Min Exi Min Mat Fac Sto Slots Evolved 6 | . . . . . 4 2 . Power . | . . . . . . . . Propulsion 2 | . . . . . 2 . . Utility 2 | . . . . . . 2 . Weapon 2 | . . . . . 2 . . Parts Attached 38 | 6 3 1 1 . 8 8 11 Power 5 | 1 . 1 . . 2 . 1 Engine 4 | 1 . 1 . . 1 . 1 Core 1 | . . . . . 1 . . Reactor . | . . . . . . . . Propulsion 9 | 2 . . . . 2 2 3 Treads 3 | . . . . . . . 3 Leg 6 | 2 . . . . 2 2 . Wheel . | . . . . . . . . Hover . | . . . . . . . . Flight . | . . . . . . . . Utility 8 | 1 1 . 1 . . 4 1 Device 4 | . 1 . . . . 3 . Storage 1 | 1 . . . . . . . Processor 1 | . . . 1 . . . . Hackware 1 | . . . . . . 1 . Protection 1 | . . . . . . . 1 Artifact . | . . . . . . . . Weapon 16 | 2 2 . . . 4 2 6 Energy Gun . | . . . . . . . . Energy Cannon . | . . . . . . . . Ballistic Gun 15 | 2 1 . . . 4 2 6 Ballistic Cannon . | . . . . . . . . Launcher . | . . . . . . . . Special Weapon . | . . . . . . . . Impact Weapon 1 | . 1 . . . . . . Slashing Weapon . | . . . . . . . . Piercing Weapon . | . . . . . . . . Special Melee Weapon . | . . . . . . . . Unidentified Prototypes 5 | . . . 1 . 1 2 1 Parts Lost 11 | . . . . . . . 11 Power 1 | . . . . . . . 1 Propulsion 5 | . . . . . . . 5 Utility 3 | . . . . . . . 3 Weapon 2 | . . . . . . . 2 Highest Loss Streak 8 | . . . . . . . 8 To Critical Strikes . | . . . . . . . . Average Backups 3 | . 1 5 3 2 2 3 3 Power . | . . . . . . . . Propulsion . | . . . . . . . . Utility 1 | . . 3 1 1 1 2 2 Weapon 1 | . . 2 1 1 1 1 . Tool/Special . | . . . . . . . . Unused Backups 5 | . . . 2 1 1 . 1 Power . | . . . . . . . . Propulsion . | . . . . . . . . Utility 4 | . . . 2 1 . . 1 Weapon 1 | . . . . . 1 . . Tool/Special . | . . . . . . . . Average Slot Usage (%) 94 | . 95 100 100 100 83 99 79 Engine 10 | . 14 14 14 14 8 7 6 Treads 1 | . . . . . . . 8 Leg 26 | . 28 28 28 28 26 30 11 Device 6 | . 10 14 4 . . 12 2 Storage 10 | . 14 14 14 14 9 7 6 Processor 7 | . . . 9 14 9 7 7 Ballistic Gun 23 | . 19 14 14 14 28 30 28 Impact Weapon 5 | . 8 14 14 14 1 . . Peak Build Rating 59 | 6 7 7 17 18 39 50 59 Average Rating 30 | 5 6 7 13 17 31 48 43 On Entrance 17 | . 6 7 7 17 18 39 48 Avg Prop Armor Cover (%) 4 | . . . . . . . 4 Naked Turns . | . . . . . . . . Heaviest Build 51 | 10 13 13 13 12 29 45 51 Greatest Support 60 | 20 20 20 20 20 50 55 60 Greatest Overweight (x) 2 | . . . . . . . 2 Average Overweight (x) . | . . . . . . . . Largest Inventory Capacity 8 | 8 8 8 8 8 8 8 8 Average Capacity 7 | 7 8 8 8 8 8 8 7 Most Carried 8 | . 5 6 8 8 8 8 8 Average Carried 6 | . 1 5 7 7 7 7 6 Final Capacity 8 | 8 8 8 8 8 8 8 5 Final Carried 8 | . 5 6 8 8 8 8 2 Class Distribution -------------------- 44% | Mutant 30% | Skirmisher 17% | Scavenger-Tank 6% | Scavenger-Skirmisher Dominant Class ---------------- Mutant | -10/Materials Mutant | -10/Mines Mutant | -10/Exiles Mutant | -9/Mines Skirmisher | -8/Materials Skirmisher | -7/Factory Scavenger-Tank | -7/Storage Resources | -11 -10 -10 -10 -9 -8 -7 -7 ----------- Run | Yrd Mat Min Exi Min Mat Fac Sto Matter Collected 1612 | 205 95 113 10 . 268 384 537 Remotely . | . . . . . . . . Salvage Created 2403 | . 147 104 . 13 456 636 1047 Parts 87 | . . 1 . 1 28 23 34 Haulers Intercepted 5 | . . . . . 3 1 1 Recyclers Shooed 2 | . . . . . . . 2 Parts Field Recycled . | . . . . . . . . Retrieved Matter . | . . . . . . . . Parts Self-Destructed . | . . . . . . . . Prevented . | . . . . . . . . Parts Restored . | . . . . . . . . Kills | -11 -10 -10 -10 -9 -8 -7 -7 ------- Run | Yrd Mat Min Exi Min Mat Fac Sto Combat Hostiles Destroyed 33 | . 2 . . . 3 11 17 Guns 28 | . . . . . 3 8 17 AOE 3 | . . . . . . 3 . Classes Destroyed 13 | . 2 1 . 1 5 2 2 Worker 8 | . . . . 1 2 4 1 Builder 1 | . . . . . 1 . . Tunneler 1 | . . 1 . . . . . Hauler 5 | . . . . . 3 1 1 Recycler 6 | . 1 1 . . . 1 3 Operator 1 | . . . . . 1 . . Watcher 2 | . . . . . 2 . . Swarmer 10 | . . . . . . 4 6 Grunt 9 | . 2 . . . 2 4 1 Duelist 3 | . . . . . . 2 1 Sentry 8 | . . . . . . . 8 Hunter 2 | . . . . . 1 1 . Programmer 1 | . . . . . . . 1 Guerrilla 1 | . . . . . . 1 . Best Kill Streak 8 | . 2 1 . 1 5 8 5 Combat Bots Only 5 | . 2 . . . 2 4 5 Max Kills in Single Turn 3 | . 1 1 . 1 3 3 2 Gunslinging 1 | . . . . . . . 1 Exploded 2 | . . . . . . 2 . Melee . | . . . . . . . . Uniques/NPCs Destroyed . | . . . . . . . . Combat | -11 -10 -10 -10 -9 -8 -7 -7 -------- Run | Yrd Mat Min Exi Min Mat Fac Sto Hostile Shots Fired 559 | . 7 . . . 10 26 516 Missed 163 | . 1 . . . 4 7 151 Hits 396 | . 6 . . . 6 19 365 Melee 6 | . . . . . . . 6 Projectile 390 | . 6 . . . 6 19 359 Critical Strikes 1 | . . . . . . . 1 Damage Taken 3621 | . 72 . . . 84 518 2947 Core 745 | . 27 . . . 16 173 529 Absorbed by Shields 129 | . . . . . . 18 111 Regen/Repaired (Parts) 6 | . 6 . . . . . . Core Remaining (%) 95 | 100 . . . 89 97 . . Volleys Fired 84 | . 1 . . . 13 19 51 Largest 4 | . 1 . . . 4 4 4 Hottest 112 | . 20 . . . 112 112 112 Shots Fired 278 | . 1 . . . 47 76 154 Gun 278 | . 1 . . . 47 76 154 Cannon . | . . . . . . . . Launcher . | . . . . . . . . Special . | . . . . . . . . Kinetic 278 | . 1 . . . 47 76 154 Thermal . | . . . . . . . . Explosive . | . . . . . . . . Electromagnetic . | . . . . . . . . Robot Hit Streak 10 | . 1 . . . 4 9 10 Robot Miss Streak 7 | . . . . . 2 5 7 Penetration Max 1 | . . . . . 1 1 1 Secondary Targets 5 | . . . . . . . 5 Max Gunslinging Chain 1 | . . . . . . . 1 Shots Hit Robots 178 | . 6 2 . 2 24 32 112 Core Hits 125 | . . 1 . 1 18 22 83 Critical Kills . | . . . . . . . . Critical Parts Destroyed 3 | . 2 . . . . 1 . Critical Strikes 3 | . 2 . . . . 1 . Destroy 1 | . . . . . . 1 . Smash 2 | . 2 . . . . . . Melee Attacks 10 | . 6 2 . 2 . . . Impact 10 | . 6 2 . 2 . . . Slashing . | . . . . . . . . Piercing . | . . . . . . . . Sneak Attacks 5 | . 1 2 . 2 . . . Combat Hostiles . | . . . . . . . . Follow-up Attacks . | . . . . . . . . Damage Inflicted 5115 | . 149 120 . 99 530 1461 2756 Guns 4069 | . 12 . . . 530 771 2756 Cannons . | . . . . . . . . Explosions 690 | . . . . . . 690 . Melee 356 | . 137 120 . 99 . . . Ramming . | . . . . . . . . Kinetic 4069 | . 12 . . . 530 771 2756 Thermal 690 | . . . . . . 690 . Explosive . | . . . . . . . . Electromagnetic . | . . . . . . . . Impact 356 | . 137 120 . 99 . . . Slashing . | . . . . . . . . Piercing . | . . . . . . . . Highest Corruption . | . . . . . . . . Average Corruption . | . . . . . . . . Corruption Purged . | . . . . . . . . Corruption Blocked . | . . . . . . . . Overload Shots . | . . . . . . . . Overflow Damage 217 | . 64 33 . . . 120 . Projectiles . | . . . . . . . . Explosions 120 | . . . . . . 120 . Melee 97 | . 64 33 . . . . . Knockbacks 3 | . 1 1 . 1 . . . Impact 3 | . 1 1 . 1 . . . Kinetic . | . . . . . . . . Secondary . | . . . . . . . . Self-Inflicted Damage 191 | . . . . . . 191 . Shots 3 | . . . . . . 3 . Rammed . | . . . . . . . . Targets Rammed . | . . . . . . . . Kicked . | . . . . . . . . Crushed . | . . . . . . . . Highest Temperature 540 | . . . . . 89 8 540 Average Temperature 120 | . . . . . 27 8 142 Received Heat Transfer 953 | . 42 . . . 36 78 797 Effects 11 | . . . . . . . 11 Shutdowns 2 | . . . . . . . 2 Energy Bleed 1 | . . . . . . . 1 Interference 5 | . . . . . . . 5 Short Circuit 1 | . . . . . . . 1 Damage (minor) 2 | . . . . . . . 2 Siege Activations . | . . . . . . . . Martial Activations . | . . . . . . . . Shielding Activations . | . . . . . . . . Robots Disrupted . | . . . . . . . . Combat Hostiles . | . . . . . . . . Robots Corrupted 4 | . 3 1 . . . . . Combat Hostiles 2 | . 2 . . . . . . Parts Fried 8 | . 5 3 . . . . . Impact Corruptions 5 | . 3 2 . . . . . Robots Melted . | . . . . . . . . Combat Hostiles . | . . . . . . . . Parts Melted . | . . . . . . . . Heat Transferred 400 | . . . . . . 400 . Parts Sabotaged . | . . . . . . . . Parts Stolen . | . . . . . . . . Parts Stripped . | . . . . . . . . Power Chain Reactions . | . . . . . . . . Alert | -11 -10 -10 -10 -9 -8 -7 -7 ------- Run | Yrd Mat Min Exi Min Mat Fac Sto Maximum Alert Level 2 | . . . . . . 2 2 Low Security (%) 61 | 100 100 100 . 100 100 37 . Level 1 4 | . . . . . . . 29 Level 2 33 | . . . . . . 62 70 Level 3 . | . . . . . . . . Level 4 . | . . . . . . . . Level 5 . | . . . . . . . . High Security . | . . . . . . . . Max Security . | . . . . . . . . Peak Influence 640 | . 50 5 . 20 99 640 539 Initial 287 | . . . . . . 44 287 Average 195 | . 11 1 . 1 21 340 420 Influence Increases 1848 | . 71 10 . 35 215 1006 511 Destroy 0b10 Robot/C 940 | . 40 . . . 120 440 340 Destroy 0b10 Robot/NC 120 | . 5 10 . 5 45 30 25 Destroy Leader 234 | . 10 . . . 40 72 112 Allied During Kill 18 | . . . . . 9 9 . Successful Hack 26 | . 16 . . . . 10 . Disable Machine 210 | . . . . . . 180 30 Anti-Garrison Action 150 | . . . . . . 150 . Destroy Structure 60 | . . . . . 1 55 4 Lose Combat Pursuer 90 | . . . . 30 . 60 . Influence Decreases 1374 | . 71 10 . 35 116 471 671 Entered New Map 402 | . . . . . . 55 347 Time Decay 823 | . 52 10 . 35 116 396 214 Lost Part 110 | . . . . . . . 110 Lost Ally 20 | . . . . . . 20 . Purge Threat 19 | . 19 . . . . . . Squads Dispatched 13 | . 1 . . . 1 6 5 Investigation 2 | . . . . . 1 1 . Extermination 2 | . . . . . . 1 1 Reinforcement 3 | . 1 . . . . 1 1 Assault 4 | . . . . . . 3 1 Garrison 2 | . . . . . . . 2 Intercept . | . . . . . . . . Searches Triggered . | . . . . . . . . Construction Impeded . | . . . . . . . . Haulers Reinforced 1 | . . . . . . . 1 Active Scanning Responses . | . . . . . . . . Cargo Convoy Interrupts . | . . . . . . . . Stealth | -11 -10 -10 -10 -9 -8 -7 -7 --------- Run | Yrd Mat Min Exi Min Mat Fac Sto Distress Signals 6 | . . . . . 2 1 3 Communications Jammed . | . . . . . . . . Distress Signals . | . . . . . . . . Times Spotted 68 | . 5 . . 4 9 20 30 Peak Tracking Total 10 | . 2 . . 3 3 4 10 Tactical Retreats 2 | . . . . 1 . 1 . Traps | -11 -10 -10 -10 -9 -8 -7 -7 ------- Run | Yrd Mat Min Exi Min Mat Fac Sto Traps Triggered 2 | . . . . . . 1 1 Indirectly . | . . . . . . . . Trap Hack Attempts . | . . . . . . . . Triggered . | . . . . . . . . Disarmed . | . . . . . . . . Reprogrammed . | . . . . . . . . Reused . | . . . . . . . . Traps Extracted . | . . . . . . . . Installed . | . . . . . . . . Triggered . | . . . . . . . . Machines | -11 -10 -10 -10 -9 -8 -7 -7 ---------- Run | Yrd Mat Min Exi Min Mat Fac Sto Machines Disabled 15 | . . . . . . 13 2 Max in Single Turn 6 | . . . . . . 6 1 Garrison Access 2 | . . . . . . 2 . Machines Repaired . | . . . . . . . . Machines Dismantled . | . . . . . . . . Machines Sabotaged . | . . . . . . . . Overloaded Fab Kills . | . . . . . . . . Hacking | -11 -10 -10 -10 -9 -8 -7 -7 --------- Run | Yrd Mat Min Exi Min Mat Fac Sto Machines Accessed 22 | . 4 . 5 1 1 9 2 Terminals 7 | . 2 . . . . 4 1 Fabricators 1 | . . . . . . 1 . Repair Stations 2 | . 1 . . . . . 1 Recycling Units 2 | . 1 . . . . 1 . Scanalyzers 2 | . . . . . 1 1 . Garrison Access 2 | . . . . . . 2 . Total Hacks 91 | . 13 . 50 1 3 22 2 Successful 67 | . 8 . 50 1 2 6 . Failed 24 | . 5 . . . 1 16 2 Catastrophic 3 | . 1 . . . . 2 . Database Lockouts . | . . . . . . . . Manual 3 | . . . 3 . . . . Terminals 20 | . 7 . . . . 12 1 Fabricators 2 | . . . . . . 2 . Repair Stations 4 | . 3 . . . . . 1 Recycling Units 5 | . 3 . . . . 2 . Scanalyzers 4 | . . . . . 3 1 . Garrison Access 5 | . . . . . . 5 . Terminal Hacks 60 | . 4 . 50 1 . 5 . Record 53 | . 2 . 49 . . 2 . Prototype ID Bank 2 | . 1 . . . . 1 . Open Door 1 | . . . . 1 . . . Open DSF 2 | . . . . . . 2 . Unreport Threat 1 | . 1 . . . . . . Proto ID Catalog 1 | . . . 1 . . . . Fabricator Hacks . | . . . . . . . . Repair Station Hacks 2 | . 2 . . . . . . Scan Component 1 | . 1 . . . . . . Repair 1 | . 1 . . . . . . Recycling Unit Hacks 2 | . 2 . . . . . . Report Inventory 1 | . 1 . . . . . . Retrieve Components 1 | . 1 . . . . . . Scanalyzer 2 | . . . . . 2 . . Retrieve Study 2 | . . . . . 2 . . Garrison Access Hacks 1 | . . . . . . 1 . Seal Access 1 | . . . . . . 1 . Unauthorized Hacks . | . . . . . . . . Terminals . | . . . . . . . . Fabricators . | . . . . . . . . Repair Stations . | . . . . . . . . Recycling Units . | . . . . . . . . Scanalyzers . | . . . . . . . . Garrison Access . | . . . . . . . . Data Cores Recovered 1 | . . . . . 1 . . Used . | . . . . . . . . Hacking Detections 13 | . 3 . . . 1 7 2 Full Trace Events 3 | . 1 . . . 1 1 . Feedback Events . | . . . . . . . . Feedback Blocked . | . . . . . . . . Robot Schematics Acquired . | . . . . . . . . Robots Built . | . . . . . . . . Authchips . | . . . . . . . . Time . | . . . . . . . . Total Robot Build Rating . | . . . . . . . . Part Schematics Acquired . | . . . . . . . . Parts Built . | . . . . . . . . Authchips . | . . . . . . . . Time . | . . . . . . . . Total Part Build Rating . | . . . . . . . . Part Studies Acquired 1 | . . . . . 1 . . Parts Repaired 1 | . 1 . . . . . . Time 26 | . 26 . . . . . . Parts Recycled . | . . . . . . . . Recycled Matter . | . . . . . . . . Retrieved Matter . | . . . . . . . . Retrieved Components 1 | . 1 . . . . . . Parts Scanalyzed . | . . . . . . . . Part Schematics Acquired . | . . . . . . . . Parts Damaged . | . . . . . . . . Bothacking | -11 -10 -10 -10 -9 -8 -7 -7 ------------ Run | Yrd Mat Min Exi Min Mat Fac Sto Used RIF Installer . | . . . . . . . . Robots Hacked . | . . . . . . . . Non-combat . | . . . . . . . . Combat . | . . . . . . . . Robot Hacks Applied . | . . . . . . . . Relay Couplers Released 3 | . . . . . . 3 . Machine Destruction 3 | . . . . . . 3 . Fabnet Peak Effective % . | . . . . . . . . Robots Rewired . | . . . . . . . . Allies Hacked . | . . . . . . . . Hacks Repelled . | . . . . . . . . Allies | -11 -10 -10 -10 -9 -8 -7 -7 -------- Run | Yrd Mat Min Exi Min Mat Fac Sto Total Allies . | . . . . . . . . Largest Group . | . . . . . . . . Highest-Rated Group . | . . . . . . . . Highest-Rated Ally . | . . . . . . . . Total Orders 3 | . . . . . . 3 . EXPLORE 2 | . . . . . . 2 . RETURN 1 | . . . . . . 1 . Ally Attacks 32 | . . . . . 5 27 . Total Damage 1729 | . . . . . 291 1438 . Kills 14 | . . . . . 3 11 . Allies Corrupted . | . . . . . . . . Allies Melted . | . . . . . . . . Turrets Deployed 3 | . . . . . 2 1 . Intel | -11 -10 -10 -10 -9 -8 -7 -7 ------- Run | Yrd Mat Min Exi Min Mat Fac Sto Active Infowar (turns) 3188 | . 179 106 599 465 471 1021 347 Sensors 467 | . 179 106 182 . . . . T.N.C. 2721 | . . . 417 465 471 1021 347 Robot Analysis Total . | . . . . . . . . Derelict Logs Recovered 3 | . . 1 . 2 . . . Drone Launches 4 | . . . . . . 2 2 Drone Recoveries 1 | . . . . . . 1 . Exploration | -11 -10 -10 -10 -9 -8 -7 -7 ------------- Run | Yrd Mat Min Exi Min Mat Fac Sto Turns Passed 3420 | 60 243 106 599 465 471 1021 455 Spaces Moved 2425 | 47 179 83 489 375 296 794 162 Core 8 | 6 . . . . . . 2 Treads 42 | . . . . . . . 42 Legs 2375 | 41 179 83 489 375 296 794 118 Wheels . | . . . . . . . . Hover . | . . . . . . . . Flight . | . . . . . . . . Fastest Speed 50 | 50 120 120 120 120 112 108 108 Average Speed 119 | 111 120 120 120 120 119 110 164 Slowest Speed 320 | 120 120 120 120 120 120 112 320 Overloaded Moves . | . . . . . . . . Propulsion Burnouts . | . . . . . . . . Robots Hopped 2 | . . . . . 2 . . Potential Cave-ins . | . . . . . . . . Cave-ins Triggered . | . . . . . . . . Exploration Rate (%) 40 | 4 35 28 92 73 28 25 38 Regions Visited 7 Branch Regions 4 Pre-discovered Areas 2 | . . . 1 1 . . . Known Exits Taken 1 | . . 1 . . . . . Unknown Exits Taken 6 | 1 1 . 1 1 1 1 . Scrap Searched 2 | . . 1 . 1 . . . Spaces Dug . | . . . . . . . . Terrain Destroyed 57 | . . . . . 1 54 2 Melee . | . . . . . . . . Projectile 3 | . . . . . 1 . 2 AOE 54 | . . . . . . 54 . Terrain Rammed . | . . . . . . . . Walls Destroyed . | . . . . . . . . Machines Disabled . | . . . . . . . . Actions | -11 -10 -10 -10 -9 -8 -7 -7 --------- Run | Yrd Mat Min Exi Min Mat Fac Sto Total 2749 | 52 194 85 503 387 379 890 259 Wait 150 | . . . . 9 54 63 24 Move 2414 | 46 178 82 488 374 291 793 162 Hop 2 | . . . . . 2 . . Pick Up 15 | . 3 . 5 1 4 1 1 Fast Attach 30 | 6 4 . . . 7 4 9 Attach 5 | . . . . . 1 1 3 Detach 2 | . 2 . . . . . . Swap 5 | . . 1 1 . . 3 . Drop 29 | . . . 6 1 7 6 9 Fire 84 | . 1 . . . 13 19 51 Melee 10 | . 6 2 . 2 . . . Ram . | . . . . . . . . Kick . | . . . . . . . . Crush . | . . . . . . . . Escape Stasis . | . . . . . . . . Rewire 3 | . . . 3 . . . . Trap . | . . . . . . . . Miscellaneous . | . . . . . . . . Route ------- -11/Scrapyard -10/Materials -10/Mines -10/Exiles (discovered 2 exits: *Min x2) -9/Mines -8/Materials -7/Factory (discovered 2 exits: [*Fac] / *Sto) -7/Storage History --------- Turn | Location | Event 10 | -11/Scrapyard | Discovered new exit (range 16) 61 | -11/Scrapyard | Entered Materials 177 | -10/Materials | Repaired Sensor Array 265 | -10/Materials | Discovered new exit (range 12) 304 | -10/Materials | Entered Mines 316 | -10/Mines | Build established: Mutant 332 | -10/Mines | Identified exit to Exiles 405 | -10/Mines | Deemed a non-threat by the Exiles lab entrance 410 | -10/Mines | Entered Exiles 430 | -10/Exiles | Discovered new exit (range 14) 443 | -10/Exiles | Met 8R-AWN 463 | -10/Exiles | Met EX-HEX 499 | -10/Exiles | Met EX-BIN 523 | -10/Exiles | Aligned with FarCom system 524 | -10/Exiles | Given EX-Vault access code 578 | -10/Exiles | Opened EX-Vault 586 | -10/Exiles | Found Prototype Ballistic Gun 591 | -10/Exiles | Found Prototype Processor 592 | -10/Exiles | Identified Modified TNC 595 | -10/Exiles | Found Deploy-a-Sentry 597 | -10/Exiles | Found Deploy-a-Sentry 603 | -10/Exiles | Found Deploy-a-Sentry 605 | -10/Exiles | Identified XL Autogun Array 648 | -10/Exiles | Warned to stay clear of 0b10 Research branches 741 | -10/Exiles | Met EX-DEC 773 | -10/Exiles | Visited The Gauntlet 909 | -10/Exiles | Learned location of Zion (-7) 994 | -10/Exiles | Discovered new exit (range 14) 1009 | -10/Exiles | Stole three prototypes: Modified TNC, XL Autogun Array, Deploy-a-Sentry 1009 | -10/Exiles | Entered Mines 1067 | -9/Mines | Found the Drone Emporium 1074 | -9/Mines | Found Prototype Device 1115 | -9/Mines | Learned Materials security intel 1461 | -9/Mines | Discovered new exit (range 13) 1474 | -9/Mines | Entered Materials 1474 | -8/Materials | Evolved 4 slots: Propulsion x2, Weapon x2 1533 | -8/Materials | DAS Turret deployed 1830 | -8/Materials | Build established: Skirmisher 1849 | -8/Materials | DAS Turret deployed 1899 | -8/Materials | Discovered new exit (range 15) 1945 | -8/Materials | Entered Factory 1945 | -7/Factory | Evolved 2 slots: Utility x2 1945 | -7/Factory | Identified Sensor Drone Bay 1947 | -7/Factory | FarCom data flow suspended 1975 | -7/Factory | Discovered new exit (range 44) 2082 | -7/Factory | DAS Turret deployed 2610 | -7/Factory | Discovered new exit (range 3) 2745 | -7/Factory | First assault squad dispatched 2966 | -7/Factory | Entered Storage 3206 | -7/Storage | Garrison activated, responded to threat 3340 | -7/Storage | Build established: Scavenger-Tank 3355 | -7/Storage | Garrison activated, responded to threat 3366 | -7/Storage | First assault squad dispatched 3394 | -7/Storage | Core integrity fell below 50% 3415 | -7/Storage | Core integrity fell below 20% 3421 | -7/Storage | Destroyed by Y-54 Guardian with Flak Gun Last Messages --------------- Guardian. 03399_ R-06 Scavenger collects Flak Gun. 03400_ Overheating: System interference. 03400_ XL Autogun Subcomponent temporarily disabled. 03402_ R-06 Scavenger collects Flak Gun. 03405_ U-05 Engineer builds a Wall. 03406_ XL Autogun Subcomponent destroyed. 03406_ Acquired 70 matter. 03407_ R-06 Scavenger collects Lgt. Treads. 03408_ XL Autogun Subcomponent destroyed. 03409_ Acquired XL Autogun Subcomponent. 03410_ R-06 Scavenger collects Lgt. Treads. 03414_ Sml. Storage Unit destroyed. 03415_ R-06 Scavenger collects Prc. Assault Rifle. 03418_ R-06 Scavenger collects Gatling Laser. 03420_ Sensor Drone released from Sensor Drone Bay. 03421_ Y-54 Guardian destroyed. Map ----- +----------------------------------------------------+ | ?????????????????????????????????????????????????? | | ?????????????????????????????????????????????????? | | ?????????????????????????????????????????????????? | | ?????????????????????????????????????????????????? | | ?????????????????????????????????????????????????? | | ?????????????????????????????????????????????????? | | ?????????????????????g??a????????????????????????? | | ?????????????????????????????????????????????????? | | ?????????????????????????????????????????????????? | | ?????????????????????????????????????????????????? | | ?????????????????????????????????????????????????? | | ?????????????????????????????????????????????????? | | ?????????????????????????????????????????????????? | | ?????????????????????????????????????????????????? | | ?????????????????????????????????????????????????? | | ?????????????????????????????????????????????????? | | ?????????????????????????????????????????????????? | | ?????????????????????????????????????????????????? | | ???????????Y?????????????????????????????????????? | | ????????????????????????###??????????????????????? | | ????????????????????##### ###????????????????????? | | ????????????????????# g * #????????????????????? | | ????????????????????# ""%[ #????????????????????? | | ????????????????????# """ #????????????????????? | | ????????????????????# "T #????????????????????? | | ????????????????????# """@= #???????Y????????????? | | ?????????? ""# i""%r #????????????????????? | | ?????????? gg Yg# [%u #????????????????????? | | ???###########/#########n#Y###???????????????????? | | ??? ^ g anmuu% #???????????????????? | | ??? +???????????????????? | | ???? """ ^ # ??????????????????? | | ?????# """ #####+###+#?! ????????????????? | | ?????# """ ^ ! #??? ? #?? "???????????????? | | ?????# """ #?? """?#??? ??????????????? | | ###### " " #? "G" ?#######????????????? | | # """#? " " #"""""#????????????? | | # rY"## ##""R""#????????????? | | [!!# """############ " " ###??????????? | | %+ ## # ############ | | *! # a ##""" # """ ## # | | !!==###+#+##### ##""" # """ ## " | | !! ## % # ##""" # """ ## " | | ## ## k## # ## T | | ####### """"" ## ##""" # ]] "" # """ """ " | | ??????# """"" ## ##""" # ]] T" ## """ """ " | | ??????# """"" ## ##""" # ]] "![## """ """ # | | ??????# ## ## * [ # % ## # | | ??????# """"" # ####+#########/#########+##### | | ??????# """"??# % % %= %% | +----------------------------------------------------+ Best States ------------- Heat Dissipation 56 Energy Generation 16 Energy Capacity 290 Matter Stores 300 Matter Capacity 300 Sight Range 16 Robot Scan Range 14 Terrain Scan Density 10 Armor Coverage 600 Evasion (%) 55 Recoil Reduction 3 Authchip Count 2 Item Schematics ----------------- None Robot Schematics ------------------ None Fabricated ------------ Nothing Repaired ---------- Sensor Array | 70% | -10/Materials Studied --------- Carbon-fiber Leg | -8/Materials | Hacked Alien Tech Used ----------------- None Achievements -------------- Insider Info Morally Flexible Sixth Sense Challenges ------------ None Game ------ Seed DroneZeronetSegregator Manual? 0 Play Time 00:45:48 Cumulative 30.7 hours Start 2025.11.26 @ 12:53:54 End 2025.11.26 @ 17:16:09 Sessions 3 Manual Loads 0 Difficulty Rogue Special Mode None Game No. 30 Rogue 30 Adventurer 0 Explorer 0 Win Type - Total 0 Types 0/0/0/0/0/0/0/0/0/0 Lore% 16 Gallery% 30 Achievement% 20 Wizard Run 0 Options --------- Layout 1 ASCII 0 Keyboard 0 Movement Mouse Keybinds 0 Fullscreen 1 Font 24/Smallcaps Map View 50x35 Zoom Use 0% Tactical HUD 1 Map Filters NONE Filters NONE Steam 1 RUN: 21bb0829-2c08-40ee-9ddf-a378bf1cd5da